bitfinex/quotes_ETHUSD_20251118
["timestamp","ask_amount","ask_price","bid_price","bid_amount"]
[1763493824003,0.002,3166.9,3165.9,0.405504]
[1763493824341,0.6539,3166.9,3165.2,0.405504]
[1763493824628,0.6539,3166.9,3165.9,0.4623]
[1763493824837,0.4623,3166.8,3165.9,0.4623]
[1763493826611,0.002,3166.9,3166.5,0.405504]
[1763493826801,0.1916,3166.9,3166.5,0.405504]
[1763493827001,0.1916,3166.9,3166.1,0.405504]
[1763493827201,0.1916,3166.9,3166.6,0.4643]
[1763493827202,0.002,3166.9,3166.6,0.4643]
[1763493827915,0.002,3166.9,3166.7,0.405504]
[1763493829108,0.002,3166.9,3166.7,0.305504]
[1763493829941,0.002,3166.9,3166.7,0.47318366]
[1763493830143,0.002,3166.9,3166.7,0.305504]
[1763493831816,0.002,3166.9,3166.1,0.405504]
[1763493832018,0.002,3166.9,3166.8,0.1265965]
[1763493832315,0.002,3166.9,3166.1,0.405504]
[1763493832547,0.002,3166.9,3166.3,0.405504]
[1763493833213,0.1916,3166.9,3166.3,0.405504]
[1763493833841,0.6539,3166.9,3166.2,0.4643]
[1763493834043,0.1916,3166.9,3166.3,0.405504]
[1763493834249,0.6539,3166.9,3166.3,0.405504]
[1763493834635,0.4623,3166.8,3166.3,0.405504]
[1763493837324,0.4623,3166.8,3166.2,0.4643]
[1763493837528,0.4623,3166.8,3166.0,0.001]
[1763493837860,0.4623,3166.8,3166.2,0.405504]
[1763493841942,0.4671,3166.3,3166.1,0.4623]
[1763493842143,0.4671,3166.2,3166.0,0.001]
[1763493842341,0.9294,3166.1,3166.0,0.001]
[1763493842728,0.4623,3166.5,3166.0,0.001]
[1763493842941,0.4671,3166.1,3166.0,0.001]
[1763493843334,0.4623,3166.6,3166.0,0.001]
[1763493844383,0.1916,3166.9,3166.0,0.90799264]
[1763493844674,0.6539,3166.9,3166.2,4.76656768]
[1763493845359,0.4623,3166.8,3166.2,4.76656768]
[1763493845966,0.4671,3166.3,3166.0,0.90799264]
[1763493846139,0.4671,3166.1,3166.0,0.001]
[1763493846556,0.948,3166.1,3166.0,0.001]
[1763493847966,0.4809,3166.4,3166.0,0.001]
[1763493848146,0.4546,3166.1,3166.0,0.001]
[1763493848467,0.4809,3166.4,3166.0,0.001]
[1763493848860,0.4546,3166.1,3166.0,0.001]
[1763493849569,0.9355,3166.1,3166.0,0.001]
[1763493857155,0.002,3166.7,3166.0,0.001]
[1763493857574,0.4829,3166.7,3166.0,0.001]
[1763493862973,0.002,3166.7,3166.0,0.001]
[1763493865495,0.002,3166.7,3166.0,0.4543]
[1763493865713,0.4533,3166.6,3166.1,0.405504]
[1763493866081,0.4533,3166.6,3166.0,0.406504]
[1763493866680,0.002,3166.7,3166.0,0.406504]
[1763493867415,0.4553,3166.7,3166.0,0.406504]
[1763493868110,0.4553,3166.7,3166.0,0.53826966]
[1763493869011,0.4553,3166.7,3166.0,0.001]
[1763493875310,0.002,3166.7,3166.0,0.001]
[1763493876031,0.002,3166.7,3166.1,0.405504]
[1763493877433,0.002,3166.7,3166.0,0.4573]
[1763493877434,0.002,3166.7,3166.0,0.001]
[1763493877730,0.002,3166.7,3166.1,0.405504]
[1763493879637,0.4711,3166.6,3166.1,0.405504]
[1763493879842,0.4711,3166.6,3166.0,0.001]
[1763493880042,0.4711,3166.6,3166.0,0.406504]
[1763493881142,0.4798,3166.1,3166.0,0.001]
[1763493881659,0.9509,3166.1,3166.0,0.001]
[1763493882421,0.4798,3166.1,3166.0,0.001]
[1763493882760,0.4711,3166.3,3166.0,0.001]
[1763493883459,0.4798,3166.1,3166.0,0.001]
[1763493887554,0.4711,3166.4,3166.0,0.001]
[1763493887968,0.002,3166.7,3166.0,0.001]
[1763493888155,0.002,3166.7,3166.0,0.406504]
[1763493888467,0.002,3166.7,3166.1,0.03158459]
[1763493888966,0.4798,3166.2,3166.0,0.001]
[1763493889158,0.4798,3166.1,3166.0,0.001]
[1763493889358,0.4711,3166.6,3166.0,0.001]
[1763493889560,0.4711,3166.5,3166.0,0.001]
[1763493890338,0.4798,3166.1,3166.0,0.001]
[1763493891288,0.4711,3166.3,3166.0,0.001]
[1763493892671,0.4711,3166.3,3166.1,0.4711]
[1763493892972,0.002,3166.7,3166.1,0.4711]
[1763493892973,0.4711,3166.6,3166.1,0.4711]
[1763493895038,0.002,3166.7,3166.1,0.4711]
[1763493896045,0.4711,3166.6,3166.1,0.4711]
[1763493896371,0.4798,3166.2,3166.1,0.45672]
[1763493897374,0.4711,3166.4,3166.1,0.45672]
[1763493899484,0.4798,3166.2,3166.1,0.45672]
[1763493900060,0.4711,3166.4,3166.1,0.45672]
[1763493900257,0.4711,3166.6,3166.1,0.45672]
[1763493900646,0.4798,3166.2,3166.1,0.45672]
[1763493900876,0.4711,3166.6,3166.1,0.45672]
[1763493903081,0.002,3166.7,3166.1,0.45672]
[1763493903387,0.4731,3166.7,3166.1,0.45672]
[1763493905264,0.002,3166.7,3166.2,0.405504]
[1763493905563,0.002,3166.7,3166.0,4.87530126]
[1763493905564,0.4711,3166.6,3166.0,0.001]
[1763493905982,0.4711,3166.6,3166.3,0.4711]
[1763493906152,0.4638,3166.7,3166.3,0.4711]
[1763493906354,0.4895,3166.4,3166.3,0.4711]
[1763493906776,0.9513,3166.4,3166.3,0.4711]
[1763493907306,0.9513,3166.4,3166.0,0.001]
[1763493907485,0.4895,3166.1,3166.0,0.001]
[1763493907969,0.9513,3166.1,3166.0,0.001]
[1763493908361,0.4618,3166.4,3166.0,0.001]
[1763493908556,0.002,3166.7,3166.0,0.12764339]
[1763493908885,0.002,3166.7,3166.1,1.31249664]
[1763493909067,0.002,3166.7,3166.2,0.63144413]
[1763493909769,0.4638,3166.7,3166.2,0.63144413]
[1763493911591,0.4895,3166.3,3166.2,0.63144413]
[1763493911980,0.4618,3166.5,3166.0,0.001]
[1763493912186,0.4618,3166.5,3166.2,0.4895]
[1763493912686,0.4895,3166.3,3166.2,0.4895]
[1763493913062,0.9513,3166.3,3166.2,0.4895]
[1763493913769,0.9513,3166.3,3166.0,0.001]
[1763493913970,0.4895,3166.1,3166.0,0.001]
[1763493914375,0.9513,3166.1,3166.0,0.001]
[1763493914574,0.4895,3166.1,3166.0,0.001]
[1763493915601,0.9513,3166.1,3166.0,0.001]
[1763493916169,0.9513,3166.1,3166.0,0.4905]
[1763493918178,0.9513,3166.1,3166.0,0.001]
[1763493920190,0.002,3166.7,3166.0,0.001]
[1763493920191,0.4618,3166.4,3166.0,0.001]
[1763493920502,0.29616191,3166.6,3166.0,0.12866184]
[1763493920704,0.4883,3166.6,3166.0,0.12866184]
[1763493921307,0.002,3166.7,3166.0,0.12866184]
[1763493921491,0.4883,3166.6,3166.0,0.12866184]
[1763493921698,0.4785,3166.1,3166.0,0.12866184]
[1763493922195,0.9668,3166.1,3166.0,0.12866184]
[1763493922591,0.002,3166.7,3166.0,0.12866184]
[1763493922796,0.4903,3166.7,3166.0,0.12866184]
[1763493923109,0.4903,3166.7,3166.0,0.001]
[1763493923510,0.4903,3166.7,3166.1,0.12866184]
[1763493923821,0.4785,3166.2,3166.1,0.12866184]
[1763493924320,0.9668,3166.2,3166.1,0.12866184]
[1763493924515,0.002,3166.7,3166.1,0.12866184]
[1763493924819,0.4883,3166.5,3166.1,0.12866184]
[1763493925117,0.4785,3166.2,3166.1,0.12866184]
[1763493926019,0.9668,3166.2,3166.1,0.12866184]
[1763493926497,0.002,3166.7,3166.1,0.12866184]
[1763493926902,0.002,3166.7,3166.2,0.405504]
[1763493927291,0.002,3166.7,3166.0,0.406504]
[1763493927490,0.002,3166.7,3166.3,0.405504]
[1763493927687,0.002,3166.6,3166.3,1.31249664]
[1763493927892,0.002,3166.6,3166.4,0.405504]
[1763493928412,0.002,3166.6,3166.5,1.43909995]
[1763493928614,0.002,3166.6,3166.5,0.53210731]
[1763493930839,0.002,3166.6,3166.5,6.20224311]
[1763493931003,0.002,3166.6,3166.5,6.91316669]
[1763493939707,0.002,3166.6,3166.5,6.00617405]
[1763493939936,0.002,3166.6,3166.5,5.29525047]
[1763493940140,0.002,3166.6,3166.5,6.20224311]
[1763493941343,0.002,3166.6,3166.5,6.23382371]
[1763493941523,0.002,3166.6,3166.5,10.09382371]
[1763493941725,0.002,3166.6,3166.5,10.06224311]
[1763493941939,0.002,3166.6,3166.5,11.06846742]
[1763493942741,0.002,3166.6,3166.5,7.20846742]
[1763493943047,0.002,3166.9,3166.6,1.31249664]
[1763493943354,0.002,3166.9,3166.5,10.65911394]
[1763493943355,0.002,3166.9,3166.8,6.0756398]
[1763493943527,0.002,3166.9,3166.8,10.83878296]
[1763493943844,0.002,3166.9,3166.8,11.92581912]
[1763493944056,0.002,3167.1,3166.9,0.90699264]
[1763493944223,0.002,3167.1,3167.0,0.405504]
[1763493944418,0.002,3167.1,3167.0,0.53206565]
[1763493945757,0.002,3167.1,3167.0,0.48501565]
[1763493946074,0.002,3167.1,3167.0,1.68554873]
[1763493947063,0.002,3167.7,3167.0,1.68554873]
[1763493947269,0.002,3168.0,3167.7,0.90699264]
[1763493947470,0.002,3168.0,3167.9,10.43327896]
[1763493947761,0.002,3168.0,3167.9,6.0756398]
[1763493947962,0.002,3168.0,3167.9,6.809735]
[1763493948761,0.002,3168.0,3167.9,11.57287816]
[1763493948976,0.002,3168.0,3167.9,6.809735]
[1763493950461,0.4749,3168.0,3167.9,6.809735]
[1763493950688,0.9494,3168.0,3167.9,6.404231]
[1763493950888,0.9494,3168.0,3167.9,1.03352386]
[1763493951680,0.9494,3168.0,3167.9,5.79666702]
[1763493960192,0.4749,3168.0,3167.9,5.79666702]
[1763493960517,0.002,3168.0,3167.9,6.20217102]
[1763493960722,0.002,3168.0,3167.9,11.58553128]
[1763493961315,0.002,3168.0,3167.9,6.82238812]
[1763493963996,0.002,3168.0,3167.9,11.58553128]
[1763493964790,0.002,3168.0,3167.9,10.68238812]
[1763493966897,0.916,3168.0,3167.9,10.27688412]
[1763493967092,0.916,3168.0,3167.9,9.65666702]
[1763493967497,0.916,3168.0,3167.9,10.06217102]
[1763493968028,0.002,3168.0,3167.9,10.06217102]
[1763493969116,0.4603,3168.0,3167.9,10.06217102]
[1763493969721,0.4603,3168.0,3167.9,4.89352386]
[1763493969722,0.916,3168.0,3167.9,4.89352386]
[1763493970544,0.916,3168.0,3167.9,1.03352386]
[1763493970701,0.916,3168.0,3167.9,0.90699264]
[1763493975831,0.916,3168.0,3167.9,5.6701358]
[1763493975832,0.002,3168.0,3167.9,5.6701358]
[1763493976014,0.002,3168.0,3167.9,6.73741024]
[1763493979027,0.4603,3168.0,3167.9,6.73741024]
[1763493979228,0.4603,3168.0,3167.9,6.0756398]
[1763493979501,0.4603,3168.0,3167.9,9.9356398]
[1763493979715,0.916,3168.0,3167.9,4.76699264]
[1763493982848,0.916,3168.0,3167.9,3.86]
[1763493985447,0.916,3168.0,3167.6,0.001]
[1763493985617,0.6871,3167.7,3167.6,0.001]
[1763493985814,1.152,3167.7,3167.6,0.001]
[1763493989770,0.6871,3167.7,3167.6,0.001]
[1763493989971,0.002,3168.0,3167.7,0.90699264]
[1763493990160,0.002,3168.0,3167.8,0.56711358]
[1763493990350,0.4897,3167.8,3167.7,0.90699264]
[1763493990763,0.9546,3167.8,3167.7,0.90699264]
[1763493990937,0.9546,3167.8,3167.7,1.56929264]
[1763493992175,0.4897,3167.8,3167.7,1.56929264]
[1763493992340,0.9546,3167.8,3167.7,1.56929264]
[1763493993571,0.9546,3167.8,3167.7,0.90699264]
[1763493993773,0.9546,3167.8,3167.6,0.95025143]
[1763493994072,0.9546,3167.7,3167.6,0.95025143]
[1763493994673,0.1974,3167.9,3167.6,1.52197584]
[1763493994842,0.6623,3167.9,3167.6,1.52197584]
[1763493995043,0.4897,3167.7,3167.6,1.52197584]
[1763493997239,0.4897,3167.7,3167.6,0.95025143]
[1763493997470,0.957,3167.7,3167.6,0.95025143]
[1763494000148,0.1974,3167.9,3167.6,0.95025143]
[1763494000568,0.1974,3167.9,3167.6,0.001]
[1763494000766,0.6647,3167.9,3167.7,0.4693]
[1763494001173,0.4679,3167.8,3167.7,0.4693]
[1763494001773,0.9352,3167.8,3167.7,0.4693]
[1763494004074,0.9352,3167.8,3167.6,0.001]
[1763494004248,0.9352,3167.7,3167.6,0.001]
[1763494004809,0.002,3168.0,3167.6,0.001]
[1763494004990,0.002,3168.0,3167.7,0.48708607]
[1763494005179,0.1923,3167.9,3167.7,0.48708607]
[1763494005366,0.6596,3167.9,3167.6,0.12756325]
[1763494005565,0.1923,3167.9,3167.6,0.001]
[1763494005798,0.1923,3167.9,3167.6,0.6606]
[1763494006978,0.6096,3167.9,3167.6,0.6606]
[1763494007180,0.6096,3167.9,3167.6,0.001]
[1763494007385,0.6096,3167.9,3167.6,0.6106]
[1763494007786,0.4673,3167.8,3167.6,0.6106]
[1763494007974,0.6096,3167.9,3167.6,0.6106]
[1763494009971,0.4673,3167.8,3167.6,0.6106]
[1763494010375,0.4679,3167.7,3167.6,0.001]
[1763494010916,0.9352,3167.7,3167.6,0.001]
[1763494012211,5.16628642,3167.7,3167.0,0.001]
[1763494012373,0.4679,3167.1,3167.0,0.001]
[1763494012576,0.9352,3167.1,3167.0,0.001]
[1763494014903,0.4679,3167.1,3167.0,0.001]
[1763494015625,0.9352,3167.1,3167.0,0.001]
[1763494016583,0.4673,3167.5,3167.0,0.001]
[1763494020456,0.4679,3167.1,3167.0,0.001]
[1763494020812,0.9352,3167.1,3167.0,0.001]
[1763494026641,0.4679,3167.1,3167.0,0.001]
[1763494027206,0.9198,3167.1,3167.0,0.001]
[1763494032961,0.4663,3167.0,3166.6,0.001]
[1763494033113,0.6529,3166.7,3166.6,0.001]
[1763494033313,0.6529,3166.7,3166.0,0.001]
[1763494033314,0.4663,3166.4,3166.0,0.001]
[1763494033540,0.4663,3166.1,3165.6,0.001]
[1763494033742,0.6529,3165.8,3165.6,0.001]
[1763494033955,0.9182,3165.7,3165.6,0.001]
[1763494043849,0.1866,3165.8,3165.6,0.001]
[1763494044362,0.4544,3165.7,3165.6,0.001]
[1763494044835,0.9371,3165.7,3165.6,0.001]
[1763494045242,0.4827,3166.4,3165.6,0.001]
[1763494046337,0.4544,3165.7,3165.6,0.001]
[1763494046535,0.1866,3166.7,3165.6,0.001]
[1763494046871,0.1866,3166.7,3165.7,0.68049967]
[1763494047065,0.4827,3166.6,3165.7,0.68049967]
[1763494047635,0.002,3167.3,3165.7,0.68049967]
[1763494047636,0.002,3167.3,3165.8,0.405504]
[1763494047889,0.4847,3167.3,3165.8,0.405504]
[1763494048180,0.4847,3167.3,3166.0,0.405504]
[1763494048351,0.002,3167.3,3166.0,0.405504]
[1763494049041,0.002,3166.4,3166.0,0.405504]
[1763494049485,0.002,3166.4,3166.2,1.31249664]
[1763494050750,0.002,3166.4,3166.0,0.405504]
[1763494051870,0.002,3166.4,3165.9,0.17267594]
[1763494052169,0.002,3166.4,3165.7,0.68049967]
[1763494052349,0.002,3166.4,3165.8,0.405504]
[1763494053444,0.002,3166.4,3165.7,0.68049967]
[1763494055093,0.4544,3165.8,3165.6,0.001]
[1763494055556,0.002,3166.4,3165.6,0.001]
[1763494055961,0.4827,3166.3,3165.6,0.001]
[1763494060874,0.002,3166.4,3165.6,0.43809358]
[1763494061110,0.002,3166.4,3165.9,0.405504]
[1763494062297,0.002,3166.4,3166.1,0.405504]
[1763494063786,0.002,3166.4,3166.2,0.0315836]
[1763494063985,0.002,3166.4,3166.3,0.405504]
[1763494064291,0.002,3166.4,3166.3,1.31249664]
[1763494064489,0.002,3166.4,3166.3,2.12643273]
[1763494065874,0.002,3166.4,3166.3,2.25303123]
[1763494067575,0.002,3166.8,3166.3,2.28461383]
[1763494067774,0.002,3167.3,3166.8,0.405504]
[1763494068081,0.002,3167.9,3167.3,1.31249664]
[1763494068282,0.002,3167.9,3167.5,0.405504]
[1763494068974,0.002,3167.9,3167.6,0.12654603]
[1763494069277,0.002,3167.9,3167.6,0.53205003]
[1763494070095,0.002,3167.9,3167.6,0.47325003]
[1763494075413,0.1886,3167.9,3167.6,0.47325003]
[1763494078832,0.002,3167.9,3167.6,0.47325003]
[1763494079633,0.002,3167.9,3167.6,0.43472003]
[1763494080725,0.4781,3167.7,3167.6,0.02921603]
[1763494081052,0.9682,3167.7,3167.4,0.12656685]
[1763494081401,0.9682,3167.7,3166.9,0.405504]
[1763494081629,0.9682,3167.7,3167.3,0.405504]
[1763494081842,0.4781,3167.7,3167.3,0.405504]
[1763494082001,0.4901,3167.6,3167.3,0.405504]
[1763494082811,0.002,3167.7,3167.3,0.405504]
[1763494083216,0.002,3167.7,3167.3,0.60090211]
[1763494084134,0.4921,3167.7,3167.5,0.001]
[1763494085036,0.4761,3167.6,3167.5,0.001]
[1763494085402,0.9662,3167.6,3167.2,0.001]
[1763494085635,0.4761,3167.3,3167.2,0.001]
[1763494086135,0.9662,3167.3,3167.2,0.001]
[1763494090141,0.4744,3167.7,3167.2,0.001]
[1763494090449,0.4582,3167.3,3167.2,0.001]
[1763494090825,0.9306,3167.3,3167.2,0.001]
[1763494097158,0.9306,3167.3,3166.9,0.001]
[1763494097458,0.002,3167.7,3165.6,0.6203872]
[1763494097459,0.4582,3167.0,3165.6,0.6203872]
[1763494097655,0.76780594,3167.2,3165.6,0.6203872]
[1763494097656,0.4582,3165.9,3165.6,0.6203872]
[1763494097860,0.4582,3165.9,3165.6,0.001]
[1763494098059,0.6453,3165.9,3165.6,0.001]
[1763494098354,1.1177,3165.9,3165.6,0.001]
[1763494098757,0.1871,3166.2,3165.6,0.001]
[1763494099257,0.4582,3165.7,3165.6,0.001]
[1763494101128,0.4724,3166.0,3165.6,0.001]
[1763494101332,0.4709,3165.7,3165.6,0.001]
[1763494101734,0.4709,3165.7,3165.1,0.771608]
[1763494102036,0.4724,3166.0,3165.2,0.16786006]
[1763494103960,0.4724,3166.0,3165.3,0.405504]
[1763494104164,0.1871,3166.2,3165.3,0.405504]
[1763494104464,0.4984,3166.6,3165.5,1.31249664]
[1763494104659,0.4984,3166.6,3165.6,0.77338569]
[1763494106850,0.4984,3166.6,3165.8,4.76663058]
[1763494107280,0.6683,3165.9,3165.8,4.76663058]
[1763494108643,1.1667,3165.9,3165.8,4.76663058]
[1763494109478,0.6683,3165.9,3165.8,4.76663058]
[1763494109674,0.4984,3166.2,3165.8,4.76663058]
[1763494109886,0.1974,3166.1,3165.8,4.76663058]
[1763494110576,0.1974,3167.3,3165.9,1.31249664]
[1763494110876,0.4984,3167.0,3166.7,4.76663058]
[1763494111375,0.4709,3166.8,3166.7,4.76663058]
[1763494111879,0.9693,3166.8,3166.7,4.76663058]
[1763494113979,0.6958,3167.3,3166.7,4.76663058]
[1763494114139,0.6958,3167.3,3167.0,4.76663058]
[1763494114473,0.1886,3167.9,3167.0,5.24329364]
[1763494114474,0.4984,3167.6,3167.0,5.24329364]
[1763494114674,0.4984,3167.6,3167.4,4.76663058]
[1763494114851,0.4984,3167.6,3167.1,0.6958]
[1763494115052,0.1886,3167.9,3167.1,0.6958]
[1763494115573,0.5004,3167.5,3167.1,0.6958]
[1763494115753,0.002,3167.5,3167.1,0.6958]
[1763494117171,0.002,3167.5,3167.2,0.405504]
[1763494117569,0.002,3167.5,3167.3,0.20082966]
[1763494118074,0.4609,3167.4,3167.1,0.6958]
[1763494118874,0.002,3167.5,3167.2,0.405504]
[1763494119379,0.4609,3167.3,3167.1,0.6958]
[1763494119578,0.4542,3167.5,3167.1,0.6958]
[1763494123680,0.4609,3167.2,3167.1,0.6958]
[1763494123984,0.4542,3167.5,3167.1,0.6958]
[1763494124482,0.4609,3167.2,3166.1,0.405504]
[1763494124669,0.4609,3167.2,3166.8,0.4542]
[1763494124876,0.9131,3167.2,3166.8,0.4542]
[1763494125399,0.4522,3167.1,3166.8,0.4542]
[1763494126394,0.4522,3167.4,3166.8,0.4542]
[1763494126780,0.002,3167.5,3166.8,0.4542]
[1763494127359,0.4542,3167.5,3166.8,0.4542]
[1763494130966,0.002,3167.5,3166.9,0.405504]
[1763494131503,0.002,3167.5,3166.7,0.405504]
[1763494131688,0.002,3167.5,3167.0,0.4522]
[1763494132503,0.4542,3167.5,3167.0,0.4522]
[1763494132704,0.4609,3167.1,3167.0,0.4522]
[1763494133589,0.4609,3167.1,3166.1,0.405504]
[1763494133785,0.9131,3167.1,3166.6,0.4609]
[1763494133989,0.002,3167.5,3166.2,1.06800918]
[1763494134196,0.4522,3167.4,3166.3,0.405504]
[1763494134414,0.4522,3167.4,3166.2,0.9131]
[1763494134721,0.4609,3166.3,3165.2,1.0748527]
[1763494134891,0.4609,3166.3,3166.0,0.405504]
[1763494135085,0.4609,3166.3,3165.9,0.90699264]
[1763494135295,0.4522,3166.2,3165.9,0.90699264]
[1763494135498,0.4609,3166.0,3165.4,4.87397702]
[1763494135700,0.4609,3165.9,3165.4,5.33487702]
[1763494135908,0.4609,3165.9,3165.6,0.405504]
[1763494136111,0.9131,3165.9,3165.6,0.405504]
[1763494136615,0.9131,3165.9,3165.5,0.58384623]
[1763494137319,0.9131,3165.9,3165.6,0.90699264]
[1763494138336,0.4609,3165.7,3165.5,0.001]
[1763494138610,0.4609,3165.6,3165.5,0.001]
[1763494139113,0.9131,3165.6,3165.5,0.001]
[1763494140180,0.1916,3166.4,3165.5,0.001]
[1763494140488,0.4522,3166.1,3165.5,0.001]
[1763494143181,0.4609,3165.6,3165.5,0.001]
[1763494143389,0.4522,3166.1,3165.5,0.001]
[1763494143585,0.4522,3166.0,3165.5,0.001]
[1763494145318,0.4609,3165.6,3165.5,0.001]
[1763494145696,0.9131,3165.6,3165.5,0.001]
[1763494149546,0.9118,3165.6,3165.5,0.001]
[1763494150834,0.2222,3166.0,3165.5,0.001]
[1763494152933,0.2242,3166.0,3165.5,0.001]
[1763494156136,0.2242,3166.0,3165.6,0.4509]
[1763494160740,0.2242,3166.0,3165.7,0.405504]
[1763494161034,0.2242,3166.0,3165.9,5.27830219]
[1763494161236,0.2242,3166.0,3165.9,6.18529483]
[1763494162521,0.2242,3166.0,3165.9,6.40949483]
[1763494164231,0.002,3166.4,3166.0,1.31249664]
[1763494164417,0.002,3166.4,3166.3,6.18529483]
[1763494164756,0.002,3166.4,3166.3,10.04529483]
[1763494165042,0.002,3166.4,3166.3,10.23689483]
[1763494166848,0.002,3166.7,3166.5,0.405504]
[1763494167455,0.002,3167.7,3166.7,0.405504]
[1763494167752,0.4947,3167.7,3167.4,6.18529483]
[1763494167932,0.002,3167.7,3167.4,6.80382431]
[1763494168134,0.9653,3167.5,3167.4,6.39832031]
[1763494170459,0.9653,3167.5,3167.4,0.90699264]
[1763494172825,0.9653,3167.5,3167.0,0.405504]
[1763494172826,0.9653,3167.5,3167.0,4.265504]
[1763494173060,0.4706,3167.1,3167.0,4.76699264]
[1763494173562,0.9633,3167.1,3167.0,3.86]
[1763494174257,0.9633,3167.1,3166.6,0.90699264]
[1763494174561,0.4706,3166.7,3166.6,1.02403348]
[1763494174735,0.4706,3166.7,3166.6,0.405504]
[1763494174935,0.4706,3166.7,3166.6,6.07618911]
[1763494175634,0.4927,3167.2,3166.8,0.405504]
[1763494175839,0.002,3167.5,3167.1,4.76369247]
[1763494176036,0.4927,3167.4,3167.1,4.76369247]
[1763494176259,0.4706,3167.2,3167.1,4.76369247]
[1763494176771,0.9241,3167.2,3167.1,4.76369247]
[1763494178348,0.9241,3167.2,3166.8,4.76369247]
[1763494178551,0.4535,3167.1,3166.8,4.76369247]
[1763494178842,0.6377,3166.9,3166.8,5.67068511]
[1763494179756,0.4535,3167.1,3166.8,5.67068511]
[1763494180079,0.6377,3166.9,3166.8,5.67068511]
[1763494180455,1.0912,3166.9,3166.8,5.67068511]
[1763494181058,0.6377,3166.9,3166.8,5.67068511]
[1763494181358,1.0912,3166.9,3166.8,5.67068511]
[1763494182391,0.6377,3166.9,3166.8,5.67068511]
[1763494182559,0.4529,3166.9,3166.8,5.67068511]
[1763494182990,0.6377,3166.9,3166.8,5.67068511]
[1763494183293,1.0912,3166.9,3166.8,5.67068511]
[1763494184565,0.6377,3166.9,3166.8,5.67068511]
[1763494184764,0.4535,3167.1,3166.8,5.67068511]
[1763494185409,0.002,3167.5,3166.9,1.31249664]
[1763494185722,0.4555,3167.5,3167.3,4.76369247]
[1763494186075,0.4529,3167.4,3167.3,4.76369247]
[1763494186476,0.9064,3167.4,3167.3,4.76369247]
[1763494191227,0.9064,3167.4,3167.0,4.76369247]
[1763494191435,0.4535,3167.3,3167.0,4.76369247]
[1763494191634,0.4529,3167.1,3167.0,4.76369247]
[1763494191793,0.4529,3167.1,3167.0,6.63031161]
[1763494191991,0.9064,3167.1,3167.0,6.63031161]
[1763494192829,0.4529,3167.1,3167.0,6.63031161]
[1763494194431,0.4529,3167.1,3167.0,7.08381161]
[1763494195741,0.4535,3167.3,3167.0,7.08381161]
[1763494195950,0.4529,3167.1,3167.0,2.32011914]
[1763494196133,0.4529,3167.1,3167.0,0.90699264]
[1763494196310,0.9064,3167.1,3167.0,0.90699264]
[1763494196912,0.9064,3167.1,3167.0,1.36049264]
[1763494200008,0.9064,3167.1,3167.0,0.4535]
[1763494200235,0.002,3167.5,3167.0,0.4535]
[1763494200542,0.4555,3167.5,3167.1,0.99808849]
[1763494200743,0.4529,3167.2,3167.0,5.21719247]
[1763494200928,0.4529,3167.1,3167.0,4.76369247]
[1763494201448,0.9064,3167.1,3167.0,0.4555]
[1763494202469,0.9064,3167.1,3166.6,0.001]
[1763494202742,0.002,3167.5,3166.6,0.001]
[1763494202743,0.6377,3166.7,3166.6,0.001]
[1763494203241,1.0912,3166.7,3166.6,0.001]
[1763494203410,1.0912,3166.7,3166.6,0.6387]
[1763494205817,1.0912,3166.7,3166.6,0.001]
[1763494207250,0.002,3167.1,3166.6,5.67168511]
[1763494207251,0.1806,3166.9,3166.6,5.67168511]
[1763494207418,0.1806,3166.9,3166.7,1.47426115]
[1763494207743,0.002,3167.1,3166.7,1.47426115]
[1763494207947,0.002,3167.1,3167.0,5.67068511]
[1763494208621,0.002,3167.1,3167.0,0.90699264]
[1763494209524,0.9168,3167.1,3167.0,0.90699264]
[1763494210930,0.9168,3167.1,3166.9,4.76369247]
[1763494211131,0.9148,3167.0,3166.9,5.67068511]
[1763494211659,0.002,3167.1,3167.0,1.31249664]
[1763494214517,0.002,3167.1,3167.0,1.34407226]
[1763494214717,0.002,3167.5,3167.0,1.34407226]
[1763494214718,0.002,3167.5,3167.0,1.31249664]
[1763494214949,0.002,3167.5,3167.4,6.07618911]
[1763494215557,0.002,3167.5,3167.4,6.20274795]
[1763494215722,0.002,3167.5,3167.4,6.82302275]
[1763494216954,0.9168,3167.5,3167.4,1.03355148]
[1763494217158,0.9168,3167.5,3167.4,0.12655884]
[1763494219350,0.002,3167.5,3167.4,0.12655884]
[1763494220167,0.4583,3167.5,3167.4,0.12655884]
[1763494220343,0.9168,3167.5,3167.4,0.12655884]
[1763494220545,0.9168,3167.5,3166.6,0.001]
[1763494220765,0.6404,3166.7,3166.6,0.001]
[1763494221340,0.501,3167.5,3166.6,0.001]
[1763494221541,0.501,3167.5,3167.0,4.76369247]
[1763494221852,0.501,3167.5,3166.7,5.68049247]
[1763494222058,0.6404,3166.8,3166.7,6.58748511]
[1763494222247,0.501,3167.5,3166.8,0.90699264]
[1763494222451,0.499,3167.4,3166.8,0.90699264]
[1763494222655,0.457,3166.9,3166.8,0.90699264]
[1763494222871,0.6404,3166.9,3166.7,0.9168]
[1763494223066,0.457,3166.8,3166.7,0.9168]
[1763494223268,0.956,3166.8,3166.7,0.9168]
[1763494225938,0.002,3167.5,3166.7,0.9168]
[1763494226152,0.499,3167.2,3166.7,0.9168]